{"text_format":"1","workbook":"xlsx","n_sheets":1,"sheets":["TDSheet"],"not_rendered":{"charts":0,"images":0,"macros":0,"external_links":0,"defined_names":1,"comments":0,"pivot_tables":0},"unopened":[],"bounds":{"document_bytes":16777216,"sheet_cells":100000,"rows_first":2000,"rows_last":500,"rows_between":2000,"halvings":0,"cell_chars":16384,"cell_head_chars":4096},"cells_cut":0,"cells_raw":0,"read":"whole","date_system":"1900"}

{"sheet":"TDSheet","index":0,"n_rows":254,"n_cols":19,"rows_kept":254,"cut":false,"hidden":false,"merged":[[36,1,36,17],[33,1,33,12],[32,1,32,15],[44,4,44,16],[45,4,45,16],[46,4,46,16],[44,0,44,1],[45,0,45,1],[35,1,35,12],[39,1,39,16],[40,1,40,16],[43,0,43,1],[43,4,43,16],[46,0,46,1],[37,1,37,16],[34,1,34,12],[38,1,38,17],[146,0,146,16],[147,3,147,10],[147,12,147,14],[147,15,147,16],[148,0,148,16],[159,3,159,10],[159,12,159,14],[159,15,159,16],[160,0,160,16],[149,3,149,10],[149,12,149,14],[149,15,149,16],[158,0,158,16],[156,0,156,16],[157,3,157,10],[157,12,157,14],[157,15,157,16],[150,0,150,16],[151,3,151,10],[151,15,151,16],[151,12,151,14],[152,3,152,10],[152,12,152,14],[152,15,152,16],[161,3,161,10],[161,12,161,14],[161,15,161,16],[153,0,153,16],[154,3,154,10],[154,12,154,14],[154,15,154,16],[155,3,155,10],[155,15,155,16],[155,12,155,14],[145,3,145,10],[145,12,145,14],[145,15,145,16],[256,1,256,3],[256,5,256,6],[257,2,257,11],[239,15,240,16],[241,0,241,1],[241,2,241,4],[241,15,241,16],[230,12,230,14],[230,15,230,16],[231,0,231,16],[232,3,232,10],[232,12,232,14],[232,15,232,16],[226,0,226,16],[227,3,227,10],[227,12,227,14],[227,15,227,16],[228,3,228,10],[228,12,228,14],[228,15,228,16],[223,0,223,16],[258,2,258,11],[259,2,259,11],[144,3,144,10],[144,14,144,15],[248,1,248,4],[248,13,248,14],[249,6,249,8],[252,1,252,4],[252,13,252,14],[253,6,253,8],[242,0,242,4],[242,15,242,16],[233,0,233,16],[234,3,234,10],[234,12,234,14],[234,15,234,16],[239,0,240,1],[239,2,240,4],[239,5,240,5],[239,6,239,8],[239,9,239,11],[239,12,239,14],[229,0,229,16],[230,3,230,10],[224,3,224,10],[224,12,224,14],[224,15,224,16],[225,0,225,1],[225,3,225,16],[219,0,219,16],[220,3,220,10],[220,12,220,14],[220,15,220,16],[221,0,221,16],[222,3,222,10],[222,12,222,14],[222,15,222,16],[216,0,216,1],[216,3,216,16],[217,0,217,16],[218,3,218,10],[218,12,218,14],[218,15,218,16],[213,3,213,10],[213,12,213,14],[213,15,213,16],[214,0,214,16],[215,3,215,10],[215,12,215,14],[215,15,215,16],[210,3,210,10],[210,12,210,14],[210,15,210,16],[211,0,211,16],[212,3,212,10],[212,12,212,14],[212,15,212,16],[207,3,207,10],[207,12,207,14],[207,15,207,16],[208,0,208,16],[209,3,209,10],[209,12,209,14],[209,15,209,16],[205,0,205,1],[205,3,205,16],[206,0,206,16],[203,3,203,10],[203,12,203,14],[203,15,203,16],[204,3,204,10],[204,12,204,14],[204,15,204,16],[201,3,201,10],[201,12,201,14],[201,15,201,16],[202,3,202,10],[202,12,202,14],[202,15,202,16],[198,3,198,10],[198,12,198,14],[198,15,198,16],[199,0,199,16],[200,3,200,10],[200,12,200,14],[200,15,200,16],[194,3,194,10],[194,12,194,14],[194,15,194,16],[195,0,195,16],[196,3,196,10],[196,12,196,14],[196,15,196,16],[190,12,190,14],[190,15,190,16],[191,0,191,16],[192,3,192,10],[192,12,192,14],[192,15,192,16],[190,3,190,10],[193,15,193,16],[188,3,188,10],[188,12,188,14],[188,15,188,16],[185,0,185,16],[186,3,186,10],[186,12,186,14],[186,15,186,16],[187,3,187,10],[187,12,187,14],[187,15,187,16],[182,3,182,10],[182,12,182,14],[182,15,182,16],[183,0,183,1],[183,3,183,16],[184,0,184,1],[184,3,184,16],[180,3,180,10],[180,12,180,14],[180,15,180,16],[181,3,181,10],[181,12,181,14],[181,15,181,16],[176,3,176,10],[176,12,176,14],[176,15,176,16],[178,0,178,16],[179,3,179,10],[179,12,179,14],[179,15,179,16],[172,3,172,10],[172,12,172,14],[172,15,172,16],[174,0,174,16],[175,3,175,10],[175,12,175,14],[175,15,175,16],[173,3,173,10],[173,12,173,14],[173,15,173,16],[177,3,177,10],[177,12,177,14],[177,15,177,16],[169,3,169,10],[169,12,169,14],[169,15,169,16],[170,0,170,16],[171,3,171,10],[171,12,171,14],[171,15,171,16],[167,3,167,10],[167,12,167,14],[167,15,167,16],[168,3,168,10],[168,12,168,14],[168,15,168,16],[165,3,165,10],[165,12,165,14],[165,15,165,16],[166,3,166,10],[166,12,166,14],[166,15,166,16],[162,0,162,1],[162,3,162,16],[163,0,163,16],[164,3,164,10],[164,12,164,14],[164,15,164,16],[141,3,141,10],[141,12,141,14],[141,15,141,16],[142,0,142,16],[143,3,143,10],[143,12,143,14],[143,15,143,16],[138,3,138,10],[138,12,138,14],[138,15,138,16],[139,0,139,16],[140,3,140,10],[140,12,140,14],[140,15,140,16],[135,3,135,10],[135,12,135,14],[135,15,135,16],[136,0,136,16],[137,3,137,10],[137,12,137,14],[137,15,137,16],[132,3,132,10],[132,12,132,14],[132,15,132,16],[133,0,133,1],[133,3,133,16],[134,0,134,16],[130,3,130,10],[130,12,130,14],[130,15,130,16],[131,3,131,10],[131,12,131,14],[131,15,131,16],[128,3,128,10],[128,12,128,14],[128,15,128,16],[129,3,129,10],[129,12,129,14],[129,15,129,16],[126,3,126,10],[126,12,126,14],[126,15,126,16],[127,3,127,10],[127,12,127,14],[127,15,127,16],[124,3,124,10],[124,12,124,14],[124,15,124,16],[125,3,125,10],[125,12,125,14],[125,15,125,16],[122,3,122,10],[122,12,122,14],[122,15,122,16],[123,3,123,10],[123,12,123,14],[123,15,123,16],[119,3,119,10],[119,12,119,14],[119,15,119,16],[120,0,120,16],[121,3,121,10],[121,12,121,14],[121,15,121,16],[117,3,117,10],[117,12,117,14],[117,15,117,16],[118,3,118,10],[118,12,118,14],[118,15,118,16],[115,3,115,10],[115,12,115,14],[115,15,115,16],[116,3,116,10],[116,12,116,14],[116,15,116,16],[113,3,113,10],[113,12,113,14],[113,15,113,16],[114,3,114,10],[114,12,114,14],[114,15,114,16],[111,3,111,10],[111,12,111,14],[111,15,111,16],[112,3,112,10],[112,12,112,14],[112,15,112,16],[109,3,109,10],[109,12,109,14],[109,15,109,16],[110,3,110,10],[110,12,110,14],[110,15,110,16],[107,3,107,10],[107,12,107,14],[107,15,107,16],[108,3,108,10],[108,12,108,14],[108,15,108,16],[104,0,104,16],[105,3,105,10],[105,12,105,14],[105,15,105,16],[106,3,106,10],[106,12,106,14],[106,15,106,16],[102,3,102,10],[102,12,102,14],[102,15,102,16],[103,3,103,10],[103,12,103,14],[103,15,103,16],[100,3,100,10],[100,12,100,14],[100,15,100,16],[101,3,101,10],[101,12,101,14],[101,15,101,16],[98,3,98,10],[98,12,98,14],[98,15,98,16],[99,3,99,10],[99,12,99,14],[99,15,99,16],[96,3,96,10],[96,12,96,14],[96,15,96,16],[97,3,97,10],[97,12,97,14],[97,15,97,16],[93,3,93,10],[93,12,93,14],[93,15,93,16],[94,0,94,16],[95,3,95,10],[95,12,95,14],[95,15,95,16],[91,3,91,10],[91,12,91,14],[91,15,91,16],[92,3,92,10],[92,12,92,14],[92,15,92,16],[89,3,89,10],[89,12,89,14],[89,15,89,16],[90,3,90,10],[90,12,90,14],[90,15,90,16],[87,3,87,10],[87,12,87,14],[87,15,87,16],[88,3,88,10],[88,12,88,14],[88,15,88,16],[85,3,85,10],[85,12,85,14],[85,15,85,16],[86,3,86,10],[86,12,86,14],[86,15,86,16],[83,3,83,10],[83,12,83,14],[83,15,83,16],[84,3,84,10],[84,12,84,14],[84,15,84,16],[80,0,80,1],[80,3,80,16],[81,0,81,16],[82,3,82,10],[82,12,82,14],[82,15,82,16],[78,0,78,1],[78,3,78,10],[78,12,78,14],[78,15,78,16],[79,0,79,1],[79,3,79,16],[76,0,77,1],[76,2,77,2],[76,3,77,10],[76,11,77,11],[76,12,77,14],[76,15,77,16],[73,0,73,10],[73,11,73,12],[73,13,73,14],[73,15,73,16],[70,0,70,9],[70,11,70,12],[70,13,70,14],[70,15,70,16],[71,0,71,9],[71,11,71,12],[71,13,71,14],[71,15,71,16],[64,11,64,12],[64,13,64,14],[64,15,64,16],[67,0,67,9],[67,11,67,12],[67,13,67,14],[67,15,67,16],[72,0,72,9],[72,11,72,12],[72,13,72,14],[72,15,72,16],[62,0,62,1],[62,4,62,10],[62,11,62,12],[62,13,62,14],[62,15,62,16],[63,0,63,1],[63,4,63,10],[63,11,63,12],[63,13,63,14],[63,15,63,16],[59,15,59,16],[58,15,58,16],[57,0,57,1],[57,4,57,10],[57,11,57,12],[57,13,57,14],[57,15,57,16],[58,0,58,1],[58,4,58,10],[5,12,5,16],[6,12,6,16],[8,12,8,16],[9,12,9,16],[11,0,11,16],[12,0,12,16],[16,1,16,2],[16,4,16,16],[17,1,17,2],[17,4,17,16],[19,1,19,2],[19,4,19,16],[20,1,20,2],[20,4,20,16],[22,1,22,2],[22,4,22,5],[22,7,22,16],[31,1,31,15],[30,1,30,15],[23,1,23,2],[23,7,23,16],[25,1,25,16],[27,1,27,16],[29,1,29,16],[56,11,56,12],[56,13,56,14],[56,15,56,16],[56,4,56,10],[68,0,68,9],[68,11,68,12],[68,13,68,14],[68,15,68,16],[64,0,64,10],[58,11,58,12],[58,13,58,14],[60,4,60,10],[60,11,60,12],[60,13,60,14],[60,15,60,16],[61,0,61,1],[61,4,61,10],[61,11,61,12],[61,13,61,14],[61,15,61,16],[59,0,59,1],[59,4,59,10],[59,11,59,12],[59,13,59,14],[53,0,53,1],[53,4,53,10],[53,11,53,12],[53,13,53,14],[53,15,53,16],[49,4,50,10],[49,11,50,12],[52,0,52,1],[52,4,52,10],[52,11,52,12],[52,13,52,14],[49,15,50,16],[51,0,51,1],[51,4,51,10],[51,11,51,12],[51,13,51,14],[51,15,51,16],[49,0,50,1],[49,13,50,14],[49,2,50,2],[49,3,50,3],[52,15,52,16],[54,13,54,14],[54,15,54,16],[55,0,55,1],[55,4,55,10],[55,11,55,12],[55,13,55,14],[55,15,55,16],[197,3,197,10],[197,12,197,14],[197,15,197,16],[189,3,189,10],[189,12,189,14],[189,15,189,16],[193,3,193,10],[193,12,193,14],[69,0,69,9],[69,11,69,12],[69,13,69,14],[69,15,69,16],[54,0,54,1],[54,4,54,10],[54,11,54,12],[56,0,56,1],[60,0,60,1]]}
[null,null,null,null,null,null,null,null,null,null,null,null,null,null,null,null,"ЗАТВЕРДЖЕНО "]
[null,null,null,null,null,null,null,null,null,null,null,null,null,null,null,null,"Наказ Міністерства фінансів України 26 серпня 2014 року №836"]
[]
[null,null,null,null,null,null,null,null,null,null,null,null,"ЗАТВЕРДЖЕНО: "]
[]
[null,null,null,null,null,null,null,null,null,null,null,null,"Наказ / розпорядчий документ"]
[null,null,null,null,null,null,null,null,null,null,null,null,"Наказ Управління у справах фізичної культури і спорту Миколаївської міської ради"]
[]
[null,null,null,null,null,null,null,null,null,null,null,null,"Наказ"]
[null,null,null,null,null,null,null,null,null,null,null,null,"Департамент фінансів Миколаївської міської ради\n     25.09.2017\t                             № 98 /\t\t\t   "]
[]
["ПАСПОРТ"]
["бюджетної програми місцевого бюджету на 2017 рік"]
[]
[]
[]
["1.",1300000,null,null,"Управління у справах фізичної культури і спорту Миколаївської міської ради"]
[null,"(КПКВК МБ)",null,null,"(найменування головного розпорядника)"]
[]
["2.",1310000,null,null,"Управління у справах фізичної культури і спорту"]
[null,"(КПКВК МБ)",null,null,"(найменування відповідального виконавця)"]
[]
["3.",1315030,null,null,null,null,null,"Розвиток дитячо-юнацького та резервного спорту"]
[null,"(КПКВК МБ)",null,null,"(КФКВК)",1,null,"(найменування бюджетної програми)"]
[]
["4.","Обсяг бюджетних призначень/бюджетних асигнувань  -  88491,393 тис.гривень, у тому числі загального фонду -  58594,154тис.гривень та спеціального фонду - 29897,239 тис.гривень"]
[]
["5.","Підстави для виконання бюджетної програми:"]
[]
[null,"Конституція України (Закон 28.06.1996 року № 254/96) із змінами             \nБюджетний кодекс України (Закон від 8 липня 2010 року  № 2546-УІ) зі змінами                                                                                                                                                                                                                 \nЗакон України  Про фізичну культуру і спорт № 770-ХХУ від 18.06.1999р.                                              \nНаказ  Державного комітету України з фізичної культури і спорту від 06.05.1998 року № 917\" Про затвердження норм витрат на проведення  спортивних змагань та навчально-тренувальних зборів\" (зі змінами)             \nРішення Миколаївської міської ради від 23 груня 2016 року №13/26 \"Про міський бюджетміста Миколаєва на 2017 рік\"\nРішення Миколаївської міської ради від 23 грудня 2016 №13/16  Про внесення змін до рішення Миколаїської міської ради від 05.04.2016 №4/6 \"Про затвердження міської програми  \" Фізична культура і спорту\"на 2016-2018 роки\"\n Закон України \"Про Державний бюджет України на 2017 рік\" від 22.12.2016 №1801-VIII                                                                                                                                                                                              \nРозпорядження Миколаївського міського голови від 27.03.2017 №74р \"Про внесення змін до розпису міського бюджету міста Миколаєва на 2017 рік \""]
[null,"Розпорядження Миколаївського міського голови від 24.04.2017 № 116-р \"Про внесення змін до розпису міського бюджету міста Миколаєва на 2017 рік \""]
[null,"Розпорядження Миколаївського міського голови від 04.05.2017 № 129-р \"Про внесення змін до розпису міського бюджету міста Миколаєва на 2017 рік \""]
[null,"Розпорядження Миколаївського міського голови від 26.05.2017 № 141-р \"Про внесення змін до розпису міського бюджету міста Миколаєва на 2017 рік \""]
[null,"Рішення Миколаївської міської ради від 31 травня 2017 №21/9 \"Про внесення змін до рішення міської ради від 23.12.2016 №13/26 \"Про міський бюджет міста Миколаєва на 2017 рік"]
[null,"Розпорядження Миколаївського міського голови від 20.06.2017 № 165-р \"Про внесення змін до розпису міського бюджету міста Миколаєва на 2017 рік,у зв'язку зі зміною обсягів міжбюджетних трансфертів з інших бюджетів \""]
[null,"Розпорядження Миколаївського міського голови від 20.06.2017 № 166 \"Про внесення змін до розпису міського бюджету міста Миколаєва на 2017 рік \""]
[null,"Розпорядження Миколаївського міського голови від 20.06.2017 № 166 \"Про внесення змін до розпису міського бюджету міста Миколаєва на 2017 рік \""]
[null,"Розпорядження Миколаївського міського голови від 09.08.2017 № 236р \"Про внесення змін до розпису міського бюджету міста Миколаєва на 2017 рік \" у зв'язку зі зміною обсягів міжбюджетних трансфертів з інших бюджетів \""]
[null,"Рішення Миколаївської міської ради №24/14 від 13 вересня 2017 року \"Про внесення змін до рішення міської ради від 23.12.2016  №13/26\"Про міський бюджет міста Миколаєва на 2017 рік\""]
["6.","Мета бюджетної програми"]
[null,"Створення необхідних умов для гармонічного виховання,фізичного розвитку,повноцінного оздоровлення ,змістовного відпочинку і дозвілля дітей та молоді,самореалізації,набуття навичок здорового способу життя,підготовки спортсменів для резервного спорту."]
[]
["7.","Підпрограми, спрямовані на досягнення мети, визначеної паспортом бюджетної програми:"]
["№ з/п",null,"КПКВК","КФКВК","Назва підпрограми"]
[null,null,1315031,810,"Утримання та навчально-тренувальна робота комунальних дитячо-юнацьких спортивних шкіл"]
[null,null,1315032,810,"Фінансова підтримка дитячо-юнацьких спортивних шкіл фізкультурно-спортивних товариств"]
[null,null,1315033,810,"Забезпечення підготовки спортсменів вищих категорій школами вищої спортивної майстерності"]
[]
["8. Обсяги фінансування бюджетної програми у розрізі підпрограм та завдань",null,null,null,null,null,null,null,null,null,null,null,null,null,null,null,"(тис.грн) "]
["№ з/п",null,"КПКВК","КФКВК","Підпрограма/завдання бюджетної програми",null,null,null,null,null,null,"загальний фонд",null,"спеціальний фонд",null,"Разом"]
[]
[1,null,2,3,4,null,null,null,null,null,null,5,null,6,null,7]
[null,null,1315031,810,"Утримання та навчально-тренувальна робота комунальних дитячо-юнацьких спортивних шкіл",null,null,null,null,null,null,{"$f":"L54+L55+L56","v":47797.421999999999},null,{"$f":"N54+N56+N57","v":27039.238999999998},null,{"$f":"L53+N53","v":74836.660999999993}]
[1,null,1315031,810,"Підготовка спортивного резерву та підвищення рівня фізичної підготовленості дітей дитячо-юнацькими спортивними школами\t\t\t\t\t\t\t",null,null,null,null,null,null,46335.481,null,337.71600000000001,null,{"$f":"L54+N54","v":46673.197}]
[2,null,1315031,810,"Здійснення заходів з енергозбереження",null,null,null,null,null,null,1461.941,null,null,null,{"$f":"L55+N55","v":1461.941}]
[3,null,1315031,810,"Проведення капітального ремонту приміщень",null,null,null,null,null,null,null,null,{"$f":"22856.923+1831.8","v":24688.722999999998},null,{"$f":"L56+N56","v":24688.722999999998}]
[4,null,1315031,810,"Придбання обладнання та предметів довгострокового користування",null,null,null,null,null,null,null,null,{"$f":"1766.6+51+195.2","v":2012.8},null,{"$f":"L57+N57","v":2012.8}]
[null,null,1315032,810,"Фінансова підтримка дитячо-юнацьких спортивних шкіл фізкультурно-спортивних товариств",null,null,null,null,null,null,{"$f":"L59","v":2884.2160000000003},null,null,null,{"$f":"L58+N58","v":2884.2160000000003}]
[5,null,1315032,810,"Підготовка спортивного резерву та підвищення рівня фізичної підготовленості дітей дитячо-юнацькими спортивними школами, які підпорядковані громадським організаціям фізкультурно-спортивного спрямування.",null,null,null,null,null,null,{"$f":"2736.512+147.704","v":2884.2160000000003},null,null,null,2884.2160000000003]
[null,null,1315033,810,"Забезпечення підготовки спортсменів вищих категорій школами вищої спортивної майстерності",null,null,null,null,null,null,{"$f":"L61+L62","v":7912.5159999999996},null,{"$f":"N61+N63+N64","v":2858},null,10770.516]
[6,null,1315033,810,"Підготовка спортивного резерву та спортсменів вищих категорій школами вищої спортивної майстерності\t\t\t\t",null,null,null,null,null,null,{"$f":"7133.574+60+90+20+192+50+216.942","v":7762.5159999999996},null,45,null,7807.5159999999996]
[7,null,1315033,810,"Здійснення заходів/реалізація проектів з енергозбереження",null,null,null,null,null,null,150,null,null,null,150]
[8,null,1315033,810,"Придбання обладнання та предметів довгострокового користування",null,null,null,null,null,null,null,null,{"$f":"650+7+50-20+150 +400+40+21","v":1298},null,1298]
[9,null,1315033,810,"Проведення капітального ремонту приміщень",null,null,null,null,null,null,null,null,1515,null,1515]
["Усього",null,null,null,null,null,null,null,null,null,null,{"$f":"L53+L58+L60","v":58594.153999999995},null,{"$f":"N53+N60","v":29897.238999999998},null,{"$f":"L65+N65","v":88491.392999999996}]
[]
["9. Перелік регіональних цільових програм, які виконуються у складі бюджетної програми:",null,null,null,null,null,null,null,null,null,null,null,null,null,null,null,"(тис.грн) "]
["Назва\nрегіональної цільової програми та підпрограми",null,null,null,null,null,null,null,null,null,"КПКВК","загальний фонд",null,"спеціальний фонд",null,"Разом"]
[1,null,null,null,null,null,null,null,null,null,2,3,null,4,null,5]
["Забезпечення підготовки спортсменів вищих категорій школами вищої спортивної майстерності",null,null,null,null,null,null,null,null,null,5033,{"$f":"L71","v":7625.5739999999996},null,2772,null,{"$f":"L70+N70","v":10397.574000000001}]
["Міська програма \"Фізична культура і спорт\" на 2016-2018 роки",null,null,null,null,null,null,null,null,null,"        ",{"$f":"7153.574+472","v":7625.5739999999996},null,{"$f":"2210+562","v":2772},null,{"$f":"L71+N71","v":10397.574000000001}]
["Фінансова підтримка дитячо-юнацьких спортивних шкіл фізкультурно-спортивних товариств",null,null,null,null,null,null,null,null,null,5032,2736.5120000000002,null,null,null,{"$f":"P73","v":2736.5120000000002}]
["Міська програма \"Фізична культура і спорт\" на 2016-2018 роки",null,null,null,null,null,null,null,null,null,"        ",2736.5120000000002,null,null,null,{"$f":"L73+N73","v":2736.5120000000002}]
["Усього",null,null,null,null,null,null,null,null,null,null,{"$f":"L71+L73","v":10362.085999999999},null,{"$f":"N70+N72","v":2772},null,{"$f":"L74+N74","v":13134.085999999999}]
[]
["10. Результативні показники бюджетної програми у розрізі підпрограм і завдань:"]
["№ з/п",null,"КПКВК","Показники",null,null,null,null,null,null,null,"Одиниця виміру","Джерело інформації",null,null,"Значення показника"]
[]
[1,null,2,3,null,null,null,null,null,null,null,4,5,null,null,6]
[null,null,null,"Утримання та навчально-тренувальна робота комунальних дитячо-юнацьких спортивних шкіл"]
[1,null,1315031,"Підготовка спортивного резерву та підвищення рівня фізичної підготовленості дітей дитячо-юнацькими спортивними школами\t\t\t\t\t\t\t"]
["затрат"]
[1,null,1315031,"кількість комунальних дитячо-юнацьких спортивних шкіл (ДЮСШ), видатки на утримання яких здійснюються з бюджету\t\t\t\t\t",null,null,null,null,null,null,null,"од.","звітність установ",null,null,5]
[2,null,1315031,"кількість комунальних спеціалізірованих  дитячо-юнацьких спортивних шкіл (СДЮСШОР), видатки на утримання яких здійснюються з бюджету\t\t\t\t\t\t",null,null,null,null,null,null,null,"од.","звітність установ",null,null,7]
[3,null,1315031,"кількість комунальних  дитячо-юнацьких спортивних шкіл (КДЮСШ), видатки на утримання яких здійснюються з бюджету\t\t\t\t",null,null,null,null,null,null,null,"од.","звітність установ",null,null,2]
[4,null,1315031,"обсяг витрат на утримання комунальних  дитячо-юнацьких спортивних шкіл (ДЮСШ), видатки на утримання яких здійснюються з бюджету",null,null,null,null,null,null,null,"тис.грн","Кошторис",null,null,{"$f":"16928.925","v":16928.924999999999},null,null,{"$f":"P54","v":46673.197}]
[5,null,1315031,"обсяг витрат на утримання комунальних спеціалізованих дитячо-юнацьких спортивних шкіл(СДЮСШОР), видатки на утримання яких здійснюються з бюджету\t",null,null,null,null,null,null,null,"тис.грн","Кошторис",null,null,20356.342000000001]
[6,null,1315031,"обсяг витрат на утримання  комунальних  дитячо-юнацьких спортивних шкіл (КДЮСШ), видатки на утримання яких здійснюються з бюджету\t\t\t\t\t",null,null,null,null,null,null,null,"тис.грн","Кошторис",null,null,{"$f":"9174.213+213.717","v":9387.93}]
[7,null,1315031,"кількість штатних працівників комунальних  дитячо-юнацьких спортивних шкіл (ДЮСШ), видатки на утримання яких здійснюються з бюджету.\t\t\t\t\t\t\t\t\t\t\t\t",null,null,null,null,null,null,null,"шт.од","штатний розпис",null,null,180]
[8,null,1315031,"кількість штатних працівників комунальних спеціалізованих дитячо-юнацьких спортивних шкіл (СДЮСШОР), видатки на утримання яких здійснюються з бюджету.\t\t\t\t\t\t\t\t\t\t\t\t\t\t",null,null,null,null,null,null,null,"шт.од","штатний розпис",null,null,208]
[9,null,1315031,"кількість штатних працівників комунальної дитячо-юнацьої спортивної шкіли (КДЮСШ), видатки на утримання яких здійснюються з бюджету.\t\t\t\t\t\t\t\t\t\t\t\t\t\t\t\t\t",null,null,null,null,null,null,null,"шт.од","штатний розпис",null,null,62]
[10,null,1315031," у тому числі тренерів (ДЮСШ)\t\t\t\t\t\t\t\t\t\t\t\t\t\t\t\t\t\t",null,null,null,null,null,null,null,"шт.од","штатний розпис",null,null,98]
[11,null,1315031," у тому числі тренерів(СДЮСШОР)\t\t\t\t\t\t\t\t\t\t\t\t\t\t\t\t\t\t\t\t",null,null,null,null,null,null,null,"шт.од","штатний розпис",null,null,113]
[12,null,1315031," у тому числі тренерів (КДЮСШ)\t\t\t\t\t\t\t\t\t\t\t\t\t\t\t\t\t\t\t\t",null,null,null,null,null,null,null,"шт.од","штатний розпис",null,null,31]
["продукту"]
[1,null,1315031,"середньорічна кількість учнів комунальних  дитячо-юнацьких спортивних шкіл(ДЮСШ) видатки на утримання яких здійснюються з бюджету.\t\t\t\t",null,null,null,null,null,null,null,"осіб","звітність установ",null,null,2531]
[2,null,1315031,"середньорічна кількість учнів комунальних спеціалізованих дитячо-юнацьких спортивних шкіл (СДЮСЩОР), видатки на утримання яких здійснюються з бюджету.\t\t\t\t\t",null,null,null,null,null,null,null,"осіб","звітність установ",null,null,1857]
[3,null,1315031,"середньорічна кількість учнів комунальної дитячо-юнацької спортивної шкіли (КДЮСШ), видатки на утримання яких здійснюються з бюджету.\t\t\t\t\t\t\t\t",null,null,null,null,null,null,null,"осіб","звітність установ",null,null,556]
[4,null,1315031,"кількість учнів комунальних  дитячо-юнацьких спортивних шкіл,(ДЮСШ) видатки на утримання яких здійснюються з бюджету, що взяли участь у регіональних спортивних змаганнях.\t\t\t\t",null,null,null,null,null,null,null,"осіб","звітність установ",null,null,2401]
[5,null,1315031,"кількість учнів комунальних спеціалізованих  дитячо-юнацьких спортивних шкіл,(СДЮСШОР) видатки на утримання яких здійснюються з бюджету, що взяли участь у регіональних спортивних змаганнях.\t",null,null,null,null,null,null,null,"осіб","звітність установ",null,null,1780]
[6,null,1315031,"кількість учнів комунальної дитячо-юнацької спортивної шкіли, (КДЮСШ) видатки на утримання яких здійснюються з бюджету, що взяли участь у регіональних спортивних змаганнях.",null,null,null,null,null,null,null,"осіб","звітність установ",null,null,330]
[7,null,1315031,"кількість придбаного малоцінного спортивного обладнання та  інвентарю для комунальної  дитячо-юнацької спортивної шкіли (КДЮСШ)\t\t\t\t\t",null,null,null,null,null,null,null,"од.","звітність установ",null,null,135]
[8,null,1315031,"кількість придбаного малоцінного спортивного обладнання та  інвентарю для комунальних спеціалізованих дитячо-юнацьких спортивних шкіл (СДЮСШОР)\t\t\t\t\t",null,null,null,null,null,null,null,"од.","звітність установ",null,null,310]
[9,null,1315031,"кількість придбаного малоцінного спортивного обладнання та  інвентарю для комунальних дитячо-юнацьких спортивних шкіл (ДЮСШ)",null,null,null,null,null,null,null,"од.","звітність установ",null,null,267]
["ефективності"]
[1,null,1315031,"середні витрати на утримання однієї комунальної дитячо-юнацької спортивної школи (ДЮСШ), видатки на утримання якої здійснюються з бюджету, з розрахунку на одного працівника\t\t\t\t\t",null,null,null,null,null,null,null,"грн","розрахунок",null,null,{"$f":"P86/5","v":3385.7849999999999}]
[2,null,1315031,"середні витрати на утримання однієї комунальної  спеціалізованої дитячо-юнацької спортивної школи (СДЮСШОР), видатки на утримання якої здійснюються з бюджету, з розрахунку на одного працівника\t\t\t\t\t",null,null,null,null,null,null,null,"грн","розрахунок",null,null,{"$f":"P87/P84","v":2908.0488571428573}]
[3,null,1315031,"середні витрати на утримання однієї  комунальної дитячо-юнацької спортивної школи (КДЮСШ), видатки на утримання якої здійснюються з бюджету, з розрахунку на одного працівника\t",null,null,null,null,null,null,null,"грн","розрахунок",null,null,{"$f":"P88/P85","v":4693.9650000000001}]
[4,null,1315031,"середньомісячна заробітна плата працівника дитячо-юнацької спортивної школи (ДЮСШ), видатки на утримання якої здійснюються з бюджету.\t\t\t\t\t",null,null,null,null,null,null,null,"грн","розрахунок",null,null,{"$f":"10027037/P89/12","v":4642.1467592592589}]
[5,null,1315031,"середньомісячна заробітна плата працівника спеціалізованої дитячо-юнацької спортивної школи (СДЮСШОР), видатки на утримання якої здійснюються з бюджету\t",null,null,null,null,null,null,null,"грн","розрахунок",null,null,{"$f":"12388256/P90/12","v":4963.2435897435898}]
[6,null,1315031,"середньомісячна заробітна плата працівника  дитячо-юнацької спортивної школи (КДЮСШ), видатки на утримання якої здійснюються з бюджету",null,null,null,null,null,null,null,"грн","розрахунок",null,null,{"$f":"3854140/P91/12","v":5180.2956989247314}]
[7,null,1315031,"середні витрати на навчально-тренувальну роботу у комунальних дитячо-юнацьких спортивних школах (ДЮСШ), видатки на утримання яких здійснюються з бюджету, у розрахунку на одного учня\t",null,null,null,null,null,null,null,"грн","розрахунок",null,null,437.81299999999999]
[8,null,1315031,"середні витрати на навчально-тренувальну роботу у комунальних дитячо-юнацьких спортивних школах (СДЮСШОР), видатки на утримання яких здійснюються з бюджету, у розрахунку на одного учня\t",null,null,null,null,null,null,null,"грн","розрахунок",null,null,1078.1210000000001]
[9,null,1315031,"середні витрати на навчально-тренувальну роботу у комунальних дитячо-юнацьких спортивних школах (КДЮСШ), видатки на утримання яких здійснюються з бюджету, у розрахунку на одного учня\t",null,null,null,null,null,null,null,"грн","розрахунок",null,null,991.79700000000003]
[10,null,1315031,"середні витрати на забезпечення участі одного учня комунальних дитячо-юнацьких спортивних шкіл, видатки на утримання яких здійснюються з бюджету (СДЮШОР), у регіональних спортивних змаганнях\t",null,null,null,null,null,null,null,"грн","розрахунок",null,null,437.81299999999999]
[11,null,1315031,"середні витрати на забезпечення участі одного учня комунальних дитячо-юнацьких спортивних шкіл, видатки на утримання яких здійснюються з бюджету (ДЮСШ), у регіональних спортивних змаганнях\t",null,null,null,null,null,null,null,"грн","розрахунок",null,null,1078.1210000000001]
[12,null,1315031,"середні витрати на забезпечення участі одного учня комунальних дитячо-юнацьких спортивних шкіл, видатки на утримання яких здійснюються з бюджету ( КДЮСШР), у регіональних спортивних змаганнях",null,null,null,null,null,null,null,"грн","розрахунок",null,null,991.79700000000003]
[13,null,1315031,"середня вартість  одиниці придбаного  малоцінного спортивного обладнання  та інвентарю для  комунальної дитячо-юнацької спортивної шкіли(КДЮСШ)",null,null,null,null,null,null,null,"грн","розрахунок",null,null,3937.2660000000001]
[14,null,1315031,"середня вартість  одиниці придбаного  малоцінного спортивного обладнання  та інвентарю для комунальної дитячо-юнацьких спортивних шкіл(ДЮСШ)\t",null,null,null,null,null,null,null,"грн","розрахунок",null,null,4311.1379999999999]
[15,null,1315031,"середня вартість  одиниці придбаного  малоцінного спортивного обладнання  та інвентарю для комунальної  спеціалізованих дитячо-юнацьких спортивних шкіл(СДЮСШОР)",null,null,null,null,null,null,null,"грн","розрахунок",null,null,5600.5330000000004]
["якості"]
[1,null,1315031,"кількість підготовлених у комунальних дитячо-юнацьких спортивних школах (ДЮСШ), видатки на утримання яких здійснюються з бюджету, майстрів спорту України ",null,null,null,null,null,null,null,"осіб","розрахунок",null,null,1]
[2,null,1315031,"кількість підготовлених у  комунальних спеціалізованих  дитячо-юнацьких спортивних школах (СДЮСШОР), видатки на утримання яких здійснюються з бюджету, майстрів спорту України",null,null,null,null,null,null,null,"осіб","розрахунок",null,null,8]
[3,null,1315031,"кількість підготовлених у комунальних  дитячо-юнацькі спортивні школі (КДЮСШ), видатки на утримання яких здійснюються з бюджету, майстрів спорту України",null,null,null,null,null,null,null,"осіб","розрахунок",null,null,1]
[4,null,1315031,"кількість підготовлених у  комунальних  дитячо-юнацьких спортивних школах (ДЮСШ), видатки на утримання яких здійснюються з бюджету, кандидатів у  майстри спорту України",null,null,null,null,null,null,null,"осіб","розрахунок",null,null,76]
[5,null,1315031,"кількість підготовлених у комунальних спеціалізованих  дитячо-юнацьких спортивних школах (СДЮСШОР), видатки на утримання яких здійснюються з бюджету,  кандидатів у майстри спорту України",null,null,null,null,null,null,null,"осіб","розрахунок",null,null,70]
[6,null,1315031,"кількість підготовлених у комунальні  дитячо-юнацькі спортивні школі (КДЮСШ), видатки на утримання яких здійснюються з бюджету, кандидатів у майстри спорту України",null,null,null,null,null,null,null,"осіб","розрахунок",null,null,8]
[7,null,1315031,"кількість учнів комунальних  дитячо-юнацьких спортивних шкіл (ДЮСШ), видатки на утримання яких здійснюються з бюджету,  які здобули призові місця в регіональних спортивних змаганнях",null,null,null,null,null,null,null,"осіб","розрахунок",null,null,12]
[8,null,1315031,"кількість учнів комунальні дитячо-юнацькі спортивні школі (КДЮСШ), видатки на утримання яких здійснюються з бюджету,  які здобули призові місця в регіональних спортивних змаганнях",null,null,null,null,null,null,null,"осіб","розрахунок",null,null,20]
[9,null,1315031,"кількість учнів комунальних  спеціалізованих дитячо-юнацьких спортивних шкіл (СДЮСШОР), видатки на утримання яких здійснюються з бюджету,  які здобули призові місця в регіональних спортивних змаганнях\t\t\t\t\t",null,null,null,null,null,null,null,"осіб","розрахунок",null,null,7]
[10,null,1315031,"динаміка** кількості учнів комунальних дитячо-юнацьких спортивних шкіл (ДЮСШ), видатки на утримання яких здійснюються з бюджету, порівняно з минулим роком\t",null,null,null,null,null,null,null,"%","розрахунок",null,null,4.3899999999999997]
[11,null,1315031,"динаміка** кількості учнів комунальних дитячо-юнацьких спортивних шкіл (КДЮСШ), видатки на утримання яких здійснюються з бюджету , порівняно з минулим роком",null,null,null,null,null,null,null,"%","розрахунок",null,null,156]
[12,null,1315031,"динаміка** кількості учнів комунальних дитячо-юнацьких спортивних шкіл (СДЮСШОР), видатки на утримання яких здійснюються з бюджету , порівняно з минулим роком",null,null,null,null,null,null,null,"%","розрахунок",null,null,5.86]
[2,null,1315031,"Здійснення заходів з енергозбереження"]
["затрат"]
[1,null,1315031,"обсяг видатків",null,null,null,null,null,null,null,"тис.грн","звітність установ",null,null,{"$f":"P55","v":1461.941}]
["продукту"]
[1,null,1315031,"кількість заходів з енергозбереження\t",null,null,null,null,null,null,null,"од.","звітність установ",null,null,7]
[2,null,1315031,"Площа приміщень, які планується утеплити",null,null,null,null,null,null,null,"м²","звітність установ",null,null,186.6]
["ефективності"]
[1,null,1315031,"середні витрати на проведення одного заходу з енергосбереження",null,null,null,null,null,null,null,"тис.грн","розрахунок",null,null,{"$f":"P136/P138","v":208.84871428571429}]
[2,null,1315031,"середні витрати на утеплення одного квадратного метра приміщення",null,null,null,null,null,null,null,"тис.грн","розрахунок",null,null,{"$f":"P136/P139","v":7.8346248660235807}]
["якості"]
[1,null,1315031,"Обсяг річної економії бюджетних коштів на оплату комунальних послуг та енергоносіїв внаслідок реалізації заходів з енергозбереження",null,null,null,null,null,null,null,"тис.грн","розрахунок",null,null,0.6]
[null,3,1315031,"Придбання обладнання та предметів довгострокового користування"]
[1,null,1315031,"Обсяг витрат на придбання і предметів довгострокового киристування",null,null,null,null,null,null,null,"тис.грн.","звітність установ",null,null,{"$f":"P57","v":2012.8}]
["продукту"]
[1,null,1315031,"Кількість одиниць придбання обладнання",null,null,null,null,null,null,null,"од.","звітність установ",null,null,{"$f":"61+2+6+5+7+4+114","v":199}]
["ефективності"]
[1,null,1315031,"Середні витрати на одиницю придбання обладнання",null,null,null,null,null,null,null,"тис.грн.","розрахунок",null,null,{"$f":"P146/P148","v":10.114572864321607}]
["якості"]
[1,null,1315031,"Економія коштів на рік, що виникла за результатами впровадження в експлуатацію придбаного обладнання",null,null,null,null,null,null,null,"тис.грн.","розрахунок"]
[null,4,1315031,"Проведення капітального ремонту приміщення"]
["затрат"]
[1,null,1315031,"обсяги видатків",null,null,null,null,null,null,null,"тис.грн.","звітність установ",null,null,{"$f":"P56","v":24688.722999999998}]
[2,null,1315031,"кількість об'єкта, що потребують капітального ремонту",null,null,null,null,null,null,null,"од.","звітність установ",null,null,{"$f":"16+10+5","v":31}]
["продукту"]
[1,null,1315031,"Кількість об'єктів, що планується відремонтувати",null,null,null,null,null,null,null,"од.","звітність установ",null,null,12]
["ефективності"]
[1,null,1315031,"Середні витрати на один об'єкт",null,null,null,null,null,null,null,"тис.грн.","розрахунок",null,null,{"$f":"P155/P156","v":796.41041935483861}]
["якості"]
[1,null,1315031,"Питома вага відремонтованих об'єктів у загальній кількості об'єктів, що потребують ремонту",null,null,null,null,null,null,null,"%","розрахунок",null,null,43.75]
[null,null,1315032,"Фінансова підтримка дитячо-юнацьких спортивних шкіл фізкультурно-спортивних товариств"]
["затрат"]
[1,null,1315032,"кількість дитячо-юнацьких спортивних шкіл фізкультурно-спортивних товариств, яким надається фінансова підтримка з бюджету, в розрізі їх видів (ДЮСШ)",null,null,null,null,null,null,null,"од.","звітність установ",null,null,2]
[2,null,1315032,"обсяг витрат на фінансову підтримку дитячо-юнацьких спортивних шкіл фізкультурно-спортивних товариств в розрізі їх видів (ДЮСШ)",null,null,null,null,null,null,null,"тис.грн","звітність установ",null,null,{"$f":"P59","v":2884.2160000000003}]
[3,null,1315032,"у тому числі",null,null,null,null,null,null,null,"-","звітність установ"]
[4,null,1315032,"обсяг витрат на заробітну плату дитячо-юнацьких спортивних шкіл фізкультурно-спортивних товариств в розрізі їх видів (ДЮСШ)",null,null,null,null,null,null,null,"тис.грн","звітність установ",null,null,1805.279]
[5,null,1315032,"кількість штатних працівників дитячо-юнацьких спортивних шкіл фізкультурно-спортивних товариств, яким надається фінансова підтримка з бюджету, в розрізі їх видів (ДЮСШ), у регіональних спортивних змаганнях",null,null,null,null,null,null,null,"шт.од","штатний розпис",null,null,39.75]
[6,null,1315032,"у т.ч. тренерів (ДЮСШ)",null,null,null,null,null,null,null,"шт.од","штатний розпис",null,null,31.75]
["продукту"]
[1,null,1315032,"середньорічна кількість учнів дитячо-юнацьких спортивних шкіл фізкультурно-спортивних товариств, яким надається фінансова підтримка з бюджету (ДЮСШ)",null,null,null,null,null,null,null,"осіб","звітність установ",null,null,752]
[2,null,1315032,"кількість учнів дитячо-юнацьких спортивних шкіл фізкультурно-спортивних товариств, яким надається фінансова підтримка з бюджету (ДЮСШ), що  взяли участь у регіональних спортивних змаганнях ",null,null,null,null,null,null,null,"осіб","звітність установ",null,null,752]
[3,null,1315032,"кількість придбаного малоцінного спортивного обладнання та інвентарю для  дитячо-юнацьких спортивних шкіл фізкультурно-спортивних товариств, яким надається фінансова підтримка з бюджету (ДЮСШ)",null,null,null,null,null,null,null,"од.","звітність установ",null,null,1519]
["ефективності"]
[1,null,1315032,"середні витрати на фінансову підтримку однієї дитячо-юнацької спортивної школи фізкультурно-спортивного товариства, якій надається фінансова підтримка з бюджету (ДЮСШ), з розрахунку на одного працівника",null,null,null,null,null,null,null,"грн","розрахунок",null,null,1368.2560000000001]
[2,null,1315032,"середньомісячна заробітна плата працівника дитячо-юнацької спортивної школи фізкультурно-спортивного товариства, якому надається фінансова підтримка з бюджету (ДЮСШ)",null,null,null,null,null,null,null,"грн","розрахунок",null,null,3784.65]
[3,null,1315032,"середня вартість одиниці придбаного малоцінного спортивного обладнання та інвентарю для  дитячо-юнацьких спортивних шкіл фізкультурно-спортивних товариств, яким надається фінансова підтримка з бюджету(ДЮСШ)",null,null,null,null,null,null,null,"грн","розрахунок",null,null,120.345]
["якості"]
[1,null,1315032,"кількість підготовлених у дитячо-юнацьких спортивних школах фізкультурно-спортивних товариств, яким надається фінансова підтримка з бюджету (ДЮСШ), майстрів спорту України",null,null,null,null,null,null,null,"осіб","розрахунок",null,null,2]
[2,null,1315032,"кількість підготовлених у дитячо-юнацьких спортивних школах фізкультурно-спортивних товариств, яким надається фінансова підтримка з бюджету, у розрізі їх видів (ДЮСШ),  кандидатів у майстри спорту України",null,null,null,null,null,null,null,"осіб","розрахунок",null,null,15]
[3,null,1315032,"кількість учнів  дитячо-юнацьких спортивних шкіл фізкультурно-спортивних товариств, яким надається фінансова підтримка з бюджету (ДЮСШ), які здобули призові місця в регіональних спортивних змаганнях",null,null,null,null,null,null,null,"осіб","розрахунок",null,null,752]
[4,null,1315032,"динаміка кількості учнів дитячо-юнацьких спортивних шкіл фізкультурно-спортивних товариств, яким надається фінансова підтримка з бюджету (ДЮСШ), порівняно з минулим роком",null,null,null,null,null,null,null,"%","розрахунок",null,null,0]
[null,null,null,"Забезпечення підготовки спортсменів вищих категорій школами вищої спортивної майстерності"]
[1,null,1315033,"Підготовка спортивного резерву та спортсменів вищих категорій школами вищої спортивної майстерності\t\t\t\t"]
["затрат"]
[1,null,1315033,"кількість шкіл вищої спортивної майстерності (ШВСМ)",null,null,null,null,null,null,null,"од.","звітність установ",null,null,1]
[2,null,1315033,"кількість штатних працівників (ШВСМ) ",null,null,null,null,null,null,null,"шт.од","штатний розпис",null,null,59]
[3,null,1315033,"середньорічна кількість учнів ШВСМ постійного/змінного складу",null,null,null,null,null,null,null,"осіб","звітність установ",null,null,128]
[4,null,1315033,"Кількість всеукраїнських змагань, у яких учні ШВСМ беруть участь",null,null,null,null,null,null,null,"од.","звітність установ",null,null,69]
[5,null,1315033,"кількість навчально-тренувальних зборів",null,null,null,null,null,null,null,"од.","звітність установ",null,null,58]
["продукту"]
[1,null,1315033,"кількість людино-днів проведених у ШВСМ навчально-тренувальних зборів",null,null,null,null,null,null,null,"од.","звітність установ",null,null,7160]
[2,null,1315033,"кількість людино-днів участі у ШВСМ у всеукраїнських змагань",null,null,null,null,null,null,null,"од.","звітність установ",null,null,2450]
[3,null,1315033,"кількість придбаного малоцінного спортивного обладнання та інвентарю для ШВСМ",null,null,null,null,null,null,null,"од.","звітність установ",null,null,24020]
["ефективності"]
[1,null,1315033,"середні витрати на проведення ШВСМ одного людино-дня навчально-тренувальних зборів",null,null,null,null,null,null,null,"грн","розрахунок",null,null,82.55]
[2,null,1315033,"середні витрати на забезпечення одного людино-дня для участі учнів ШВСМ у всеукраїнських змагань",null,null,null,null,null,null,null,"грн.","розрахунок",null,null,17.141999999999999]
[3,null,1315033,"середня вартість одиниці придбаного малоцінного спортивного обладнання та інвентарю для ШВСМ",null,null,null,null,null,null,null,"грн","розрахунок",null,null,1049.04]
["якості"]
[1,null,1315033,"кількість підготовлених у ШВСМ майстрів спорту України ",null,null,null,null,null,null,null,"осіб","розрахунок",null,null,1]
[2,null,1315033,"Кількість підготовлених в ШВСМ кандидатів у  майстри спорту України",null,null,null,null,null,null,null,"осіб","розрахунок",null,null,5]
[3,null,1315033,"Кількість підготовлених в ШВСМ майстрів спорту  міждународного класу України",null,null,null,null,null,null,null,"осіб","розрахунок",null,null,1]
[4,null,1315033,"Кількість підготовлених в ШВСМ членів збірних команд  України",null,null,null,null,null,null,null,"осіб","розрахунок",null,null,37]
[5,null,1315033,"Кількість підготовлених в ШВСМ кандидатів до складу збірних команд України протягом року",null,null,null,null,null,null,null,"осіб","розрахунок",null,null,7]
[2,null,1315033,"Здійснення заходів/реалізація проектів з енергозбереження"]
["затрат"]
[1,null,1315033,"Обсяги видатків",null,null,null,null,null,null,null,"тис.грн","звітність установ",null,null,{"$f":"P62","v":150}]
["продукту"]
[1,null,1315033,"кількість заходів з енергозбереження",null,null,null,null,null,null,null,"од.","звітність установ",null,null,{"$f":"1+1","v":2}]
[2,null,1315033,"площа приміщень, яку планується утеплити",null,null,null,null,null,null,null,"м²","звітність установ",null,null,{"$f":"172","v":172}]
["ефективності"]
[1,null,1315033,"середні витрати на придбання і встановлення одиниці обладнання",null,null,null,null,null,null,null,"грн","розрахунок",null,null,{"$f":"P208/P210","v":75}]
[2,null,1315033,"середні витрати на утеплення 1 кв.м. приміщення",null,null,null,null,null,null,null,"грн","розрахунок",null,null,{"$f":"P208/P211*1000","v":872.09302325581393}]
["якості"]
[1,null,1315033,"Обсяг річної економії бюджетних коштів на оплату комунальних послуг та енергоносіїв внаслідок реалізації заходів з енергозбереження",null,null,null,null,null,null,null,"тис.грн","розрахунок",null,null,2.5]
[3,null,1315033,"Придбання обладнання та предметів довгострокового користування"]
["затрат"]
[1,null,1315033,"Обсяг витрат на придбання обладнання і предметів довгострокового користування",null,null,null,null,null,null,null,"тис.грн","звітність установ",null,null,{"$f":"P63","v":1298}]
["продукту"]
[1,null,1315033,"Кількість одиниць придбаного обладнання",null,null,null,null,null,null,null,"од.","звітність установ",null,null,{"$f":"8+4+4+1","v":17}]
["ефективності"]
[1,null,1315033,"Середні витрати на одиницю придбаного обладнання",null,null,null,null,null,null,null,"тис.грн","розрахунок",null,null,{"$f":"P219/P221","v":76.352941176470594}]
["якості"]
[1,null,1315033,"Економія коштів на рік, що виникла за результатами впровадження в експлуатацію придбаного обладнання",null,null,null,null,null,null,null,"тис.грн","розрахунок",null,null,1.5]
[4,null,1315033,"Проведення капітального ремонту приміщень"]
["затрат"]
[1,null,1315033,"Обсяг витрат на проведення капітального ремонту",null,null,null,null,null,null,null,"тис.грн","звітність установ",null,null,1515]
[2,null,1315033,"Кількість об'єктів, що потребують ремонту",null,null,null,null,null,null,null,"од.","звітність установ",null,null,1]
["продукту"]
[1,null,1315033,"Кількість об'єктів, що планується відремонтувати",null,null,null,null,null,null,null,"од.","звітність установ",null,null,1]
["ефективності"]
[1,null,1315033,"Середні витрати на один об'єкт",null,null,null,null,null,null,null,"тис.грн","розрахунок",null,null,1515]
["якості"]
[1,null,1315033,"Питома вага відремонтованих об'єктів у загальній кількості об'єктів, що потребують ремонту",null,null,null,null,null,null,null,"%","розрахунок",null,null,0]
[]
[]
["11. Джерела фінансування інвестиційних проектів у розрізі підпрограм (2)",null,null,null,null,null,null,null,null,null,null,null,null,null,null,null,"(тис.грн) "]
[]
["Код",null,"Найменування джерел надходжень",null,null,"КПКВК","Касові видатки станом на \n1 січня звітного періоду",null,null,"План видатків звітного періоду",null,null,"Прогноз видатків до кінця реалізації інвестиційного проекту (3)",null,null,"Пояснення, що характеризують джерела фінансування"]
[null,null,null,null,null,null,"загальний фонд","спеціальний фонд","Разом","загальний фонд","спеціальний фонд","Разом","загальний фонд","спеціальний фонд","Разом"]
[1,null,2,null,null,3,4,5,6,7,8,9,10,11,12,13]
["УСЬОГО:"]
[]
["1 Код функціональної класифікації видатків та кредитування бюджету вказується лише у випадку, коли бюджетна програма не поділяється на підпрограми."]
["2 Пункт 11 заповнюється тільки для затверджених у місцевому бюджеті видатків/надання кредитів на реалізацію інвестиційних проектів (програм)."]
["3 Прогноз видатків до кінця реалізації інвестиційного проекту зазначається з розбивкою за роками."]
[]
[null,"Начальник  управління",null,null,null,null,null,null,null,null,null,null,null,"О.В.Машкін"]
[null,null,null,null,null,null,"(підпис)",null,null,null,null,null,null,"(ініціали та прізвище)"]
[null," ПОГОДЖЕНО: "]
[]
[null,"Заступник міського голови-директор департаменту фінансів Миколаївської міської ради",null,null,null,null,null,null,null,null,null,null,null,"В.І. Бондаренко"]
[null,null,null,null,null,null,"(підпис)",null,null,null,null,null,null,"(ініціали та прізвище)"]